bitfinex-derivatives/quotes_SOLF0:USTF0_20250114
["timestamp","ask_amount","ask_price","bid_price","bid_amount"]
[1736819102546,7.21898312,182.84,182.75,8.2887527]
[1736819102755,2.7359,182.83,182.78,2.7364]
[1736819102945,8.2887527,182.83,182.78,2.7364]
[1736819104249,2.7359,182.82,182.78,2.7364]
[1736819104748,5.21409442,182.87,182.71,129.48700437]
[1736819104749,151.60189295,182.89,182.81,8.2887527]
[1736819104953,159.89064565,182.89,182.84,8.2887527]
[1736819105153,8.2887527,182.89,182.84,8.2887527]
[1736819105355,2.735,182.88,182.84,8.2887527]
[1736819105656,8.2887527,182.89,182.84,8.2887527]
[1736819107254,11.0236527,182.89,182.84,11.0243527]
[1736819107758,2.735,182.88,182.84,8.2887527]
[1736819112448,2.735,182.88,182.83,2.7357]
[1736819112651,2.7352,182.87,182.83,2.7357]
[1736819113558,8.2887527,182.89,182.82,8.2887527]
[1736819113858,11.0236527,182.89,182.85,2.7355]
[1736819114757,2.735,182.88,182.84,11.0243527]
[1736819115254,8.2887527,182.89,182.84,11.0243527]
[1736819115459,11.0236527,182.89,182.84,11.0243527]
[1736819115655,2.7349,182.89,182.85,2.7353]
[1736819116056,2.7347,182.9,182.84,8.2887527]
[1736819116258,2.7347,182.9,182.86,2.7352]
[1736819116863,2.7347,182.9,182.86,11.0239527]
[1736819117050,2.7347,182.9,182.86,8.2887527]
[1736819117660,2.7347,182.9,182.85,2.7354]
[1736819119562,2.7347,182.9,182.86,2.7353]
[1736819124456,8.2887527,182.89,182.79,1.9674]
[1736819124659,8.2887527,182.81,182.76,2.0677]
[1736819124860,8.2887527,182.77,182.72,1.9871]
[1736819125566,8.2887527,182.77,182.73,8.2887527]
[1736819127163,8.2887527,182.77,182.74,2.737]
[1736819127364,11.0252527,182.79,182.74,2.737]
[1736819130166,8.2887527,182.79,182.75,2.737]
[1736819130366,5.19971307,182.87,182.75,8.2887527]
[1736819130669,8.2887527,182.81,182.75,8.2887527]
[1736819131067,8.2887527,182.79,182.75,8.2887527]
[1736819131266,8.2887527,182.79,182.73,8.2887527]
[1736819132073,11.0251527,182.79,182.74,2.7371]
[1736819132773,8.2887527,182.79,182.75,2.7369]
[1736819133771,8.2887527,182.79,182.76,2.7368]
[1736819134371,8.2887527,182.79,182.75,11.0256527]
[1736819135370,2.7359,182.83,182.77,11.0252527]
[1736819135571,11.0246527,182.83,182.77,11.0252527]
[1736819136074,8.2887527,182.83,182.77,11.0252527]
[1736819136271,8.2887527,182.81,182.77,2.7365]
[1736819136472,8.2887527,182.79,182.75,8.2887527]
[1736819136670,2.7365,182.78,182.73,8.2887527]
[1736819138180,2.7365,182.78,182.74,2.7371]
[1736819139881,11.0251527,182.79,182.75,2.7369]
[1736819140579,11.0251527,182.79,182.75,11.0256527]
[1736819140780,2.7362,182.8,182.76,2.7368]
[1736819141178,5.19481383,182.87,182.79,2.7364]
[1736819141381,2.7359,182.83,182.79,11.0251527]
[1736819141877,4.0361,182.88,182.79,8.2887527]
[1736819142076,4.0361,182.88,182.72,1.9871]
[1736819142077,11.0242527,182.86,182.81,11.0247527]
[1736819142878,11.0242527,182.86,182.82,2.7359]
[1736819143078,2.7355,182.86,182.82,2.7359]
[1736819143273,2.7352,182.87,182.83,2.7358]
[1736819144081,2.7352,182.87,182.83,11.0245527]
[1736819144682,13.1069527,182.88,182.84,2.7357]
[1736819144883,11.0238527,182.88,182.83,8.2887527]
[1736819145083,11.0238527,182.88,182.78,2.0585]
[1736819145283,11.0238527,182.88,182.83,8.2887527]
[1736819145882,11.0238527,182.88,182.83,11.0245527]
[1736819146084,2.7352,182.87,182.83,11.0245527]
[1736819147182,8.2887527,182.88,182.83,11.0245527]
[1736819147382,11.0237527,182.88,182.83,11.0245527]
[1736819149886,11.0235527,182.9,182.85,2.7354]
[1736819150183,11.0235527,182.9,182.85,11.0241527]
[1736819150376,2.7346,182.91,182.87,8.2887527]
[1736819150576,5.19396587,182.95,182.87,8.2887527]
[1736819150880,8.2887527,182.95,182.89,8.2887527]
[1736819152185,43.80553458,182.97,182.91,8.2887527]
[1736819153284,2.7338,182.96,182.91,11.0233527]
[1736819154181,43.80553458,182.97,182.93,11.0229527]
[1736819154386,8.2887527,182.98,182.93,11.0229527]
[1736819154588,5.80254319,182.99,182.93,8.2887527]
[1736819154888,5.80254319,182.99,182.95,2.7339]
[1736819155286,8.2887527,183.0,182.95,2.7339]
[1736819155593,8.2887527,183.0,182.95,11.0226527]
[1736819155987,2.7332,183.01,182.96,2.7338]
[1736819156686,2.7332,183.01,182.97,8.2887527]
[1736819157087,2.7332,183.01,182.96,2.7338]
[1736819158185,8.2887527,183.02,182.96,2.7338]
[1736819158490,2.7332,183.0,182.96,2.7338]
[1736819159091,2.733,183.02,182.97,2.7336]
[1736819159282,8.2887527,183.0,182.95,8.2887527]
[1736819159487,8.2887527,182.98,182.93,8.2887527]
[1736819159886,8.2887527,182.98,182.93,11.0229527]
[1736819159887,11.0222527,182.98,182.93,11.0229527]
[1736819160184,8.2887527,182.98,182.91,10.2145527]
[1736819160381,3.9799,183.06,182.91,8.2887527]
[1736819160382,8.2887527,182.96,182.91,8.2887527]
[1736819161483,2.734,182.95,182.91,11.0232527]
[1736819164093,2.7343,182.93,182.89,2.7348]
[1736819164289,8.2887527,182.96,182.9,8.2887527]
[1736819164491,2.734,182.95,182.9,11.0234527]
[1736819165091,2.7342,182.94,182.9,8.2887527]
[1736819165294,8.2887527,182.92,182.86,10.3145527]
[1736819165689,8.2887527,182.92,182.86,8.2887527]
[1736819165995,8.2887527,182.9,182.86,8.2887527]
[1736819166897,8.2887527,182.9,182.86,11.0240527]
[1736819167298,2.7347,182.91,182.87,2.7351]
[1736819167796,8.2887527,182.95,182.88,8.2887527]
[1736819167995,8.2887527,182.95,182.89,2.7347]
[1736819168396,2.7341,182.94,182.89,2.7347]
[1736819168600,8.2887527,182.95,182.82,4.0239]
[1736819168601,8.2887527,182.97,182.92,8.2887527]
[1736819168991,5.9369,182.99,182.92,8.2887527]
[1736819168992,12.3239527,182.99,182.92,8.2887527]
[1736819169198,12.3239527,182.99,182.94,8.2887527]
[1736819169402,4.0352,182.99,182.93,2.7341]
[1736819169591,4.0352,182.99,182.91,12.91115742]
[1736819169592,2.7334,182.99,182.91,12.91115742]
[1736819169891,2.7334,182.99,182.94,2.734]
[1736819170301,5.80206207,183.01,182.91,12.91115742]
[1736819170490,2.7332,183.0,182.95,2.7338]
[1736819171298,5.7,183.07,182.94,12.91115742]
[1736819171501,13.86556256,183.06,182.94,12.91115742]
[1736819171703,12.91115742,183.06,182.94,12.91115742]
[1736819172598,2.7328,183.03,182.99,2.7333]
[1736819172801,12.91115742,183.06,182.94,12.91115742]
[1736819173006,18.88955742,183.09,182.97,12.91115742]
[1736819173207,24.58955742,183.09,182.97,12.91115742]
[1736819173803,2.7325,183.05,183.01,2.7331]
[1736819174406,18.88955742,183.09,183.01,2.7331]
[1736819174711,2.7323,183.06,183.01,2.7331]
[1736819174905,18.88955742,183.09,183.02,2.7329]
[1736819175209,2.7322,183.07,183.02,2.7329]
[1736819175801,2.732,183.08,183.02,2.7329]
[1736819176503,6.6477,183.09,183.03,2.7326]
[1736819176705,3.9158,183.09,183.0,12.91115742]
[1736819177101,2.732,183.08,183.0,12.91115742]
[1736819178004,2.732,183.08,182.98,3.9755]
[1736819178005,2.7324,183.06,183.01,2.7331]
[1736819180909,2.7324,183.06,183.02,2.7329]
[1736819181810,12.91115742,183.09,182.98,3.9755]
[1736819183117,12.91115742,183.09,183.0,2.7332]
[1736819183118,2.7325,183.05,183.0,2.7332]
[1736819183313,12.91115742,183.09,183.0,12.91115742]
[1736819184816,2.7323,183.07,183.02,2.7328]
[1736819185012,2.7323,183.07,183.0,12.91115742]
[1736819185518,2.7323,183.07,183.02,2.7329]
[1736819186215,2.7323,183.06,183.0,12.91115742]
[1736819186420,12.91115742,183.09,182.98,3.9755]
[1736819186612,12.91115742,183.06,182.97,14.95895742]
[1736819187516,12.91115742,183.06,182.98,2.7334]
[1736819188016,2.7331,183.02,182.97,2.7337]
[1736819188413,12.91115742,183.06,182.97,2.7337]
[1736819189519,2.733,183.02,182.97,2.7337]
[1736819189709,12.91115742,183.03,182.95,2.7338]
[1736819190313,12.91115742,183.03,182.92,1.9435]
[1736819190517,12.91115742,183.0,182.92,1.9435]
[1736819190716,12.91115742,183.0,182.88,12.91115742]
[1736819191520,2.7339,182.96,182.91,2.7344]
[1736819192518,2.7336,182.98,182.93,2.7342]
[1736819192718,12.91115742,183.0,182.93,2.7342]
[1736819192922,12.91115742,183.0,182.89,2.0324]
[1736819193122,2.734,182.96,182.91,2.7344]
[1736819196220,12.91115742,183.0,182.91,2.7344]
[1736819196221,2.734,182.95,182.91,2.7344]
[1736819196721,2.7338,182.97,182.89,2.7347]
[1736819196923,12.91115742,183.0,182.89,2.7347]
[1736819197121,12.91115742,182.97,182.86,93.78]
[1736819197323,2.7346,182.91,182.86,96.5153]
[1736819197924,12.91115742,182.94,182.86,93.78]
[1736819198126,12.91115742,182.94,182.82,16.94775742]
[1736819198321,4.0478,182.96,182.81,127.52620437]
[1736819198322,12.91115742,182.91,182.81,127.52620437]
[1736819198527,2.7353,182.86,182.81,130.26220437]
[1736819198828,2.7353,182.86,182.81,2.736]
[1736819200425,2.7353,182.86,182.82,2.7359]
[1736819202733,2.7353,182.86,182.8,12.91115742]
[1736819202931,2.7353,182.86,182.81,2.736]
[1736819206328,2.7353,182.86,182.8,12.91115742]
[1736819206533,2.7353,182.86,182.82,2.7359]
[1736819207532,2.7353,182.86,182.8,12.91115742]
[1736819207729,1.959,182.9,182.8,12.91115742]
[1736819207929,2.7356,182.85,182.8,12.91115742]
[1736819209129,2.7356,182.85,182.8,15.64735742]
[1736819210834,2.7357,182.84,182.79,2.7363]
[1736819211132,12.91115742,182.88,182.77,12.91115742]
[1736819211530,2.7358,182.83,182.78,2.7365]
[1736819212233,2.7356,182.84,182.79,2.7362]
[1736819213831,12.91115742,182.88,182.8,2.736]
[1736819213832,2.7355,182.85,182.8,2.736]
[1736819214139,2.7355,182.85,182.77,12.91115742]
[1736819215141,2.7355,182.85,182.81,2.736]
[1736819217340,2.7355,182.85,182.81,11.01158031]
[1736819217740,2.7356,182.84,182.81,8.27558031]
[1736819218940,8.27558031,182.86,182.81,8.27558031]
[1736819219146,2.7358,182.83,182.81,8.27558031]
[1736819219939,8.27558031,182.84,182.77,8.27558031]
[1736819220146,8.27558031,182.82,182.75,3.9872]
[1736819220338,8.27558031,182.8,182.73,58.29184898]
[1736819220539,8.27558031,182.8,182.73,8.27558031]
[1736819220738,8.27558031,182.78,182.73,8.27558031]
[1736819221042,2.7369,182.76,182.73,8.27558031]
[1736819221246,2.7369,182.76,182.71,11.01308031]
[1736819221443,2.7369,182.76,182.71,2.7375]
[1736819221743,15.00176249,182.8,182.69,12.94376249]
[1736819221942,15.00176249,182.8,182.7,130.26390437]
[1736819222144,2.737,182.75,182.7,130.26390437]
[1736819222546,2.737,182.75,182.7,2.7377]
[1736819223644,15.00176249,182.8,182.69,12.94376249]
[1736819223845,2.7368,182.77,182.69,12.94376249]
[1736819225245,2.7368,182.77,182.72,2.7373]
[1736819227444,2.7368,182.77,182.69,12.94376249]
[1736819227754,2.7368,182.77,182.73,2.7372]
[1736819228050,2.7365,182.79,182.74,2.7371]
[1736819230451,2.7365,182.79,182.75,2.7369]
[1736819230947,1.8955,182.81,182.75,2.7369]
[1736819231152,2.7362,182.81,182.72,12.94376249]
[1736819231352,12.94376249,182.83,182.72,12.94376249]
[1736819231753,2.7365,182.79,182.74,2.7371]
[1736819232355,2.7365,182.79,182.72,12.94376249]
[1736819233043,2.7365,182.78,182.74,2.7371]
[1736819233446,12.94376249,182.83,182.72,12.94376249]
[1736819233646,2.7366,182.78,182.73,2.7372]
[1736819234043,2.7366,182.78,182.72,12.94376249]
[1736819235051,12.94376249,182.83,182.72,12.94376249]
[1736819235350,2.7369,182.76,182.72,12.94376249]
[1736819235550,2.7369,182.76,182.71,2.7374]
[1736819235746,2.7369,182.76,182.69,12.94376249]
[1736819236359,2.7369,182.76,182.71,2.7375]
[1736819236858,12.94376249,182.8,182.69,12.94376249]
[1736819237157,12.94376249,182.8,182.73,2.7371]
[1736819237455,2.7368,182.77,182.72,2.7374]
[1736819238253,12.94376249,182.8,182.69,12.94376249]
[1736819238452,12.94376249,182.8,182.71,2.7375]
[1736819238759,5.7,182.84,182.65,3.9568]
[1736819238760,12.94376249,182.74,182.65,3.9568]
[1736819239057,2.738,182.68,182.63,109.56246249]
[1736819239357,12.94376249,182.74,182.63,106.82376249]
[1736819239758,2.738,182.68,182.63,106.82376249]
[1736819241058,2.738,182.68,182.63,109.56246249]
[1736819241956,12.94376249,182.74,182.63,106.82376249]
[1736819242660,2.7379,182.69,182.65,2.7384]
[1736819244755,2.7379,182.69,182.63,106.82376249]
[1736819244951,2.7379,182.69,182.64,2.7386]
[1736819245455,2.7379,182.69,182.64,11.02882017]
[1736819247856,2.7381,182.68,182.64,8.29022017]
[1736819248057,8.29022017,182.7,182.64,8.29022017]
[1736819248365,8.29022017,182.68,182.62,8.29022017]
[1736819249261,2.7383,182.67,182.62,11.02912017]
[1736819249766,2.7383,182.67,182.62,8.29022017]
[1736819249957,2.7383,182.67,182.63,2.7387]
[1736819250362,2.738,182.69,182.64,11.02882017]
[1736819250561,8.29022017,182.7,182.64,11.02882017]
[1736819251372,8.29022017,182.7,182.64,8.29022017]
[1736819251673,2.7381,182.68,182.64,8.29022017]
[1736819253877,8.29022017,182.7,182.64,8.29022017]
[1736819254071,8.29022017,182.68,182.61,2.7389]
[1736819254275,8.29022017,182.69,182.63,8.29022017]
[1736819255169,2.7381,182.68,182.64,2.7385]
[1736819256270,2.7381,182.68,182.63,8.29022017]
[1736819256573,8.29022017,182.69,182.63,8.29022017]
[1736819256971,2.7384,182.65,182.61,11.02922017]
[1736819260673,2.7385,182.64,182.61,8.29022017]
[1736819261269,2.7394,182.59,182.54,15.09120423]
[1736819261471,2.7394,182.59,182.54,12.35120423]
[1736819262170,2.7394,182.59,182.54,15.09120423]
[1736819262474,8.29022017,182.59,182.53,8.29022017]
[1736819262668,5.7,182.65,182.48,5.9028]
[1736819262669,8.29022017,182.57,182.48,5.9028]
[1736819262864,8.29022017,182.57,182.52,104.97042017]
[1736819263265,8.29022017,182.57,182.51,8.29022017]
[1736819263472,8.29022017,182.57,182.48,5.9028]
[1736819263473,8.29022017,182.55,182.49,2.7408]
[1736819263675,8.29022017,182.55,182.49,11.03102017]
[1736819264075,2.7396,182.57,182.52,2.7403]
[1736819264577,8.29022017,182.56,182.51,8.29022017]
[1736819265675,8.29022017,182.56,182.52,2.7403]
[1736819266275,5.81362462,182.64,182.51,8.29022017]
[1736819266471,8.29022017,182.56,182.48,3.9567]
[1736819266677,8.29022017,182.56,182.5,8.29022017]
[1736819266877,8.29022017,182.56,182.51,8.29022017]
[1736819267179,11.03002017,182.56,182.52,2.7403]
[1736819267377,8.29022017,182.56,182.52,2.7403]
[1736819268074,2.7396,182.58,182.53,8.29022017]
[1736819268274,5.81362462,182.64,182.55,8.29022017]
[1736819268275,8.29022017,182.6,182.55,8.29022017]
[1736819269179,11.02912017,182.62,182.57,11.02972017]
[1736819269381,8.29022017,182.62,182.57,8.29022017]
[1736819269874,14.10384479,182.64,182.59,8.29022017]
[1736819270785,8.55222462,182.64,182.59,11.02952017]
[1736819271077,8.29022017,182.68,182.61,8.29022017]
[1736819271281,2.7384,182.65,182.61,8.29022017]
[1736819271480,8.29022017,182.66,182.61,8.29022017]
[1736819271881,5.7,182.71,182.51,133.22620437]
[1736819271882,11.02872017,182.64,182.59,8.29022017]
[1736819272078,8.29022017,182.62,182.55,8.29022017]
[1736819272777,5.7,182.71,182.55,11.03002017]
[1736819273079,8.29022017,182.61,182.55,11.03002017]
[1736819273581,43.87931617,182.69,182.55,8.29022017]
[1736819273875,8.29022017,182.61,182.55,8.29022017]
[1736819274375,2.7392,182.6,182.56,2.7397]
[1736819275277,5.9745,182.68,182.57,2.7396]
[1736819275581,12.96460765,182.64,182.57,2.7396]
[1736819275780,2.739,182.61,182.56,2.7397]
[1736819276981,2.739,182.61,182.53,12.96460765]
[1736819277183,2.739,182.61,182.57,2.7395]
[1736819278280,2.739,182.61,182.57,2.7396]
[1736819279278,12.96460765,182.64,182.53,12.96460765]
[1736819279880,2.7391,182.61,182.56,2.7397]
[1736819281377,2.7391,182.61,182.53,12.96460765]
[1736819281579,2.7389,182.62,182.53,12.96460765]
[1736819282084,2.7389,182.62,182.57,2.7394]
[1736819282286,15.70320765,182.64,182.53,12.96460765]
[1736819282781,12.96460765,182.67,182.61,2.7389]
[1736819283189,12.96460765,182.67,182.57,5.948]
[1736819283388,12.96460765,182.67,182.6,2.7391]
[1736819284387,12.96460765,182.64,182.59,2.7393]
[1736819284579,12.96460765,182.64,182.57,5.948]
[1736819284781,16.87560765,182.68,182.62,2.7388]
[1736819285495,15.70270765,182.68,182.63,2.7387]
[1736819285688,12.96460765,182.68,182.63,2.7387]
[1736819285980,12.96460765,182.68,182.57,5.948]
[1736819286186,2.7384,182.65,182.57,5.948]
[1736819286385,12.96460765,182.68,182.57,5.948]
[1736819286784,2.7382,182.66,182.6,2.7391]
[1736819287084,2.7382,182.66,182.57,5.948]
[1736819287285,12.96460765,182.68,182.57,5.948]
[1736819287582,2.7379,182.68,182.64,2.7385]
[1736819287981,43.87641531,182.69,182.59,12.96460765]
[1736819288189,2.7384,182.65,182.61,2.739]
[1736819288584,12.96460765,182.68,182.57,5.948]
[1736819288786,2.7385,182.64,182.6,2.7391]
[1736819288981,12.96460765,182.68,182.57,5.948]
[1736819289584,2.7383,182.66,182.6,2.7391]
[1736819289785,2.7383,182.66,182.57,5.948]
[1736819289987,12.96460765,182.68,182.57,5.948]
[1736819290186,12.96460765,182.68,182.65,2.7384]
[1736819290585,12.96460765,182.68,182.59,12.96460765]
[1736819290887,2.7382,182.67,182.63,2.7387]
[1736819291885,2.7377,182.7,182.65,2.7383]
[1736819292586,15.70210765,182.71,182.67,2.7381]
[1736819292890,12.96460765,182.71,182.59,12.96460765]
[1736819293085,2.7376,182.7,182.62,2.7387]
[1736819293291,2.7376,182.7,182.59,12.96460765]
[1736819293592,12.96460765,182.71,182.62,12.96460765]
[1736819294291,15.70220765,182.71,182.67,2.738]
[1736819294490,2.7376,182.71,182.67,2.738]
[1736819295288,14.96790765,182.74,182.68,2.7379]
[1736819295694,2.737,182.75,182.71,2.7375]
[1736819295893,12.96460765,182.79,182.68,12.96460765]
[1736819296292,12.96460765,182.79,182.72,2.7373]
[1736819296493,12.96460765,182.79,182.69,1.9276]
[1736819296791,12.96460765,182.76,182.69,1.9276]
[1736819297295,8.28515026,182.74,182.69,10.21275026]
[1736819297696,8.28515026,182.72,182.66,3.8323]
[1736819297890,8.28515026,182.72,182.66,12.11745026]
[1736819298597,11.02245026,182.72,182.68,2.7379]
[1736819298894,8.28515026,182.7,182.68,2.7379]
[1736819299095,8.28515026,182.7,182.62,2.0358]
[1736819299294,8.28515026,182.68,182.63,8.28515026]
[1736819300195,8.28515026,182.68,182.66,2.7381]
[1736819300593,8.28515026,182.68,182.63,8.28515026]
[1736819301296,2.7378,182.69,182.62,2.0358]
[1736819301995,2.7378,182.69,182.59,12.95594622]
[1736819302196,2.738,182.68,182.59,12.95594622]
[1736819302397,12.95594622,182.7,182.59,12.95594622]
[1736819302991,12.95594622,182.7,182.59,12.90748182]
[1736819303698,2.7381,182.67,182.59,12.90748182]
[1736819304092,12.95594622,182.7,182.59,12.90748182]
[1736819305093,2.7382,182.66,182.62,2.7387]
[1736819305495,12.95594622,182.64,182.53,127.52620437]
[1736819305789,2.739,182.61,182.56,2.7397]
[1736819306404,2.7388,182.63,182.57,2.7395]
[1736819306695,12.95594622,182.64,182.54,12.95594622]
[1736819306895,12.95594622,182.64,182.59,2.7391]
[1736819307097,12.95594622,182.64,182.54,12.95594622]
[1736819307597,2.7389,182.62,182.57,2.7396]
[1736819307791,12.95594622,182.64,182.51,18.74164622]
[1736819307997,2.7392,182.6,182.54,2.74]
[1736819308496,12.95594622,182.61,182.54,2.74]
[1736819308799,2.7393,182.59,182.54,2.74]
[1736819310700,2.7395,182.58,182.53,2.7402]
[1736819314305,12.95594622,182.58,182.5,96.7405]
[1736819314502,12.95594622,182.58,182.5,2.7405]
[1736819314903,12.95594622,182.58,182.49,2.7408]
[1736819314904,2.74,182.54,182.49,2.7408]
[1736819318105,12.95594622,182.58,182.45,50.4126378]
[1736819318305,2.7398,182.56,182.51,2.7404]
[1736819318801,2.7398,182.56,182.48,12.95594622]
[1736819319102,12.95594622,182.58,182.48,12.95594622]
[1736819319694,2.7396,182.57,182.53,2.7402]
[1736819320606,2.7396,182.57,182.52,2.7403]
[1736819321404,8.30208661,182.55,182.52,2.7403]
[1736819325210,8.30208661,182.55,182.5,8.30208661]
[1736819325407,8.30208661,182.55,182.53,2.7401]
[1736819326711,8.30208661,182.55,182.5,8.30208661]
[1736819326911,8.30208661,182.55,182.52,2.7403]
[1736819329517,2.74,182.54,182.49,2.7407]
[1736819329815,8.30208661,182.55,182.49,8.30208661]
[1736819330115,2.0855,182.59,182.49,8.30208661]
[1736819330314,11.04178661,182.56,182.51,2.7405]
[1736819331211,2.7397,182.56,182.53,8.30208661]
[1736819331417,2.7394,182.58,182.53,8.30208661]
[1736819331913,8.30208661,182.58,182.54,2.7399]
[1736819332104,2.7399,182.55,182.49,8.30208661]
[1736819332306,8.30208661,182.52,182.45,37.45669158]
[1736819332510,8.30208661,182.52,182.46,12.35478661]
[1736819332710,2.7405,182.51,182.47,2.741]
[1736819332910,8.30208661,182.52,182.46,12.35478661]
[1736819333311,11.04248661,182.52,182.48,2.7408]
[1736819333615,8.30208661,182.52,182.46,12.35478661]
[1736819334715,8.30208661,182.52,182.49,2.7408]
[1736819335113,8.30208661,182.52,182.41,37.46878011]
[1736819335411,8.30208661,182.48,182.43,2.7415]
[1736819336112,2.7411,182.47,182.43,2.7415]
[1736819336711,8.30208661,182.48,182.43,2.7415]
[1736819336912,11.04298661,182.48,182.43,2.7415]
[1736819337212,11.04298661,182.48,182.44,2.7415]
[1736819337410,2.0163,182.56,182.45,8.30208661]
[1736819337706,8.30208661,182.52,182.45,8.30208661]
[1736819337907,8.30208661,182.52,182.48,2.7409]
[1736819339314,2.7402,182.53,182.48,2.7409]
[1736819339508,2.7402,182.53,182.39,100.0191]
[1736819339509,12.97790284,182.54,182.39,100.0191]
[1736819339707,2.7406,182.51,182.46,2.7412]
[1736819340817,2.7406,182.5,182.46,2.7412]
[1736819341319,12.97790284,182.54,182.42,12.97790284]
[1736819341519,2.7409,182.49,182.44,2.7415]
[1736819341720,12.97790284,182.51,182.44,2.7415]
[1736819342221,12.97790284,182.51,182.42,12.97790284]
[1736819342421,12.97790284,182.51,182.45,2.7414]
[1736819342621,12.97790284,182.51,182.42,12.97790284]
[1736819343017,15.71850284,182.51,182.46,2.7411]
[1736819343823,2.7406,182.5,182.46,2.7411]
[1736819344021,12.97790284,182.51,182.39,100.0191]
[1736819344219,12.97790284,182.51,182.44,2.7414]
[1736819344529,12.97790284,182.51,182.4,12.97790284]
[1736819344719,5.7,182.55,182.46,2.7411]
[1736819345121,2.7406,182.51,182.46,2.7411]
[1736819346227,12.97790284,182.52,182.46,2.7411]
[1736819346430,2.7407,182.5,182.46,2.7411]
[1736819347624,12.97790284,182.52,182.4,12.97790284]
[1736819347824,2.741,182.48,182.4,12.97790284]
[1736819348425,2.7403,182.52,182.4,12.97790284]
[1736819349025,2.7403,182.52,182.47,2.7409]
[1736819349234,2.7403,182.52,182.39,105.7191]
[1736819349235,2.7414,182.46,182.39,100.0191]
[1736819349422,2.7414,182.46,182.39,97.938]
[1736819349628,2.7414,182.46,182.41,2.742]
[1736819351532,2.7414,182.46,182.42,2.7418]
[1736819356229,2.7414,182.45,182.41,2.742]
[1736819358332,2.7415,182.44,182.4,2.7421]
[1736819359235,2.7414,182.45,182.41,2.742]
[1736819359432,8.31294616,182.43,182.41,2.742]
[1736819359630,11.05434616,182.45,182.41,2.742]
[1736819360130,2.7416,182.44,182.4,2.742]
[1736819360333,8.31294616,182.45,182.39,106.25094616]
[1736819360635,8.31294616,182.45,182.41,8.31294616]
[1736819361135,8.31294616,182.45,182.42,2.7418]
[1736819363639,11.05374616,182.49,182.43,8.31294616]
[1736819363938,8.31294616,182.52,182.45,8.31294616]
[1736819365237,8.31294616,182.48,182.43,8.31294616]
[1736819367137,11.05394616,182.48,182.44,2.7415]
[1736819378247,5.16251991,182.55,182.41,8.31294616]
[1736819378454,11.13921991,182.56,182.47,8.31294616]
[1736819378754,8.31294616,182.54,182.47,8.31294616]
[1736819379944,11.05304616,182.54,182.49,2.7408]
[1736819380149,11.05304616,182.54,182.47,8.31294616]
[1736819380648,8.31294616,182.59,182.53,8.31294616]
[1736819380847,63.65877511,182.61,182.57,8.31294616]
[1736819381051,151.60189295,182.63,182.57,8.31294616]
[1736819381251,151.60189295,182.63,182.49,99.76]
[1736819381252,151.60189295,182.63,182.59,8.31294616]
[1736819381454,8.31294616,182.64,182.59,8.31294616]
[1736819381644,8.31294616,182.64,182.6,2.7391]
[1736819381951,8.31294616,182.64,182.59,8.31294616]
[1736819382550,2.0793,182.65,182.6,2.7391]
[1736819382754,7.6173,182.7,182.59,8.31294616]
[1736819382951,1.9173,182.7,182.61,8.31294616]
[1736819383151,1.9173,182.7,182.56,5.7]
[1736819383152,9.14332397,182.73,182.63,8.31294616]
[1736819383356,16.92901725,182.73,182.62,12.95021725]
[1736819383755,19.66631725,182.73,182.67,2.7381]
[1736819384354,19.66631725,182.73,182.66,2.7382]
[1736819385056,17.64441725,182.73,182.67,2.7381]
[1736819387054,2.7367,182.77,182.71,2.7375]
[1736819387259,8.37507319,182.79,182.68,12.95021725]
[1736819388953,12.95021725,182.8,182.72,2.7373]
[1736819389159,12.95021725,182.8,182.68,12.95021725]
[1736819389553,15.68641725,182.8,182.74,2.737]
[1736819391958,2.7359,182.82,182.76,2.7367]
[1736819392160,12.95021725,182.83,182.72,5.7]
[1736819394165,2.7359,182.82,182.72,5.7]
[1736819395057,5.862,182.85,182.72,5.7]
[1736819395058,12.95021725,182.8,182.72,5.7]
[1736819397173,12.95021725,182.8,182.75,2.7369]
[1736819397362,15.68641725,182.8,182.75,2.7369]
[1736819398164,2.7363,182.79,182.73,2.737]
[1736819399769,2.7363,182.79,182.72,5.7]
[1736819399965,2.7363,182.79,182.74,2.737]
[1736819401464,12.95021725,182.8,182.74,2.737]
[1736819401971,2.7359,182.82,182.77,2.7365]
[1736819402174,5.862,182.85,182.74,12.95021725]